bitfinex-derivatives/quotes_BTCF0:USTF0_20250710
["timestamp","ask_amount","ask_price","bid_price","bid_amount"]
[1752112480643,0.14064635,111430.0,111420.0,3.00447602]
[1752112481348,0.14064635,111430.0,111420.0,1.76935602]
[1752112481547,0.32006845,111430.0,111420.0,1.1448382]
[1752112482550,0.400622,111430.0,111420.0,1.1448382]
[1752112482949,0.32006845,111430.0,111420.0,1.1448382]
[1752112483150,0.400622,111430.0,111420.0,1.1448382]
[1752112484150,0.400622,111430.0,111420.0,1.40855602]
[1752112485150,0.58011801,111430.0,111420.0,1.1448382]
[1752112485350,0.58011801,111430.0,111420.0,0.8502382]
[1752112485853,0.400622,111430.0,111420.0,0.8502382]
[1752112486051,0.400622,111430.0,111420.0,1.11395602]
[1752112487752,0.400622,111430.0,111420.0,0.8502382]
[1752112487951,0.400622,111430.0,111420.0,1.11395602]
[1752112488853,1.016582,111430.0,111420.0,1.11395602]
[1752112489056,1.016582,111430.0,111420.0,1.15395602]
[1752112489354,1.016582,111430.0,111420.0,0.8902382]
[1752112489554,1.28029982,111430.0,111420.0,0.5402382]
[1752112489755,1.28029982,111430.0,111420.0,0.7602382]
[1752112490655,1.45979583,111430.0,111420.0,0.7602382]
[1752112492351,1.19607801,111430.0,111420.0,0.22]
[1752112492546,0.1794383,111420.0,111410.0,0.6748208]
[1752112492746,0.41813557,111420.0,111410.0,0.9848208]
[1752112493348,0.41813557,111420.0,111410.0,1.24853862]
[1752112493953,0.41813557,111420.0,111410.0,1.30853862]
[1752112494555,0.41813557,111420.0,111410.0,1.30953862]
[1752112494755,0.41813557,111420.0,111410.0,1.0478208]
[1752112494947,0.41813557,111420.0,111410.0,1.31153862]
[1752112495143,0.33754318,111420.0,111410.0,1.31153862]
[1752112495349,0.95434318,111420.0,111410.0,1.31153862]
[1752112495952,1.218301,111420.0,111410.0,0.373]
[1752112496156,1.47840539,111420.0,111410.0,0.373]
[1752112496351,2.13882733,111420.0,111410.0,0.373]
[1752112496554,2.12510951,111420.0,111410.0,0.373]
[1752112497452,1.50806951,111420.0,111410.0,0.1824544]
[1752112497657,1.50806951,111420.0,111410.0,0.5024544]
[1752112497954,2.12558951,111420.0,111410.0,0.5014544]
[1752112498153,0.99535169,111420.0,111410.0,0.5014544]
[1752112498359,1.60377853,111420.0,111410.0,0.76317222]
[1752112498561,1.60377853,111420.0,111410.0,0.4994544]
[1752112498748,1.42430653,111420.0,111410.0,0.4994544]
[1752112499666,1.39746333,111420.0,111410.0,0.4994544]
[1752112499868,1.31682318,111420.0,111410.0,0.4994544]
[1752112500069,1.42430653,111420.0,111410.0,0.4994544]
[1752112501773,1.68802435,111420.0,111410.0,0.4994544]
[1752112502257,1.42430653,111420.0,111410.0,0.4994544]
[1752112502456,1.68802435,111420.0,111410.0,0.4994544]
[1752112502853,1.68802435,111420.0,111410.0,0.5294544]
[1752112503465,1.32722435,111420.0,111410.0,0.5294544]
[1752112503965,1.580541,111420.0,111410.0,0.5494544]
[1752112504265,1.68798028,111420.0,111410.0,0.5494544]
[1752112504671,1.68798028,111420.0,111410.0,0.37]
[1752112504865,1.68798028,111420.0,111410.0,0.5494544]
[1752112506168,1.71524606,111420.0,111410.0,0.46864356]
[1752112506461,1.45152824,111420.0,111410.0,0.46864356]
[1752112507561,1.45152824,111420.0,111410.0,0.5494544]
[1752112508453,1.45152824,111420.0,111410.0,0.81317222]
[1752112508861,1.45152824,111420.0,111410.0,0.5494544]
[1752112509067,1.45152824,111420.0,111410.0,0.75317222]
[1752112509869,1.45152824,111420.0,111410.0,0.4894544]
[1752112510072,1.41240189,111420.0,111410.0,0.4894544]
[1752112510273,1.45241615,111420.0,111410.0,0.4894544]
[1752112510466,1.45241518,111420.0,111410.0,0.4894544]
[1752112511075,1.45241518,111420.0,111410.0,0.31]
[1752112511258,1.45173518,111420.0,111410.0,0.31]
[1752112511463,1.45173518,111420.0,111410.0,0.4894544]
[1752112511761,1.715453,111420.0,111410.0,0.4894544]
[1752112512665,1.715453,111420.0,111410.0,0.31]
[1752112512865,1.715453,111420.0,111410.0,0.4894544]
[1752112513070,1.45173518,111420.0,111410.0,0.4894544]
[1752112513973,1.45173518,111420.0,111410.0,0.5594544]
[1752112514171,1.45173518,111420.0,111410.0,0.82317222]
[1752112514370,1.45173518,111420.0,111410.0,0.47377222]
[1752112514572,1.45173518,111420.0,111410.0,0.79377222]
[1752112514872,1.45173518,111420.0,111410.0,0.5300544]
[1752112516073,1.41172189,111420.0,111410.0,0.5300544]
[1752112516275,1.42453027,111420.0,111410.0,0.5300544]
[1752112517469,1.42453027,111420.0,111410.0,0.5400544]
[1752112518976,1.42453027,111420.0,111410.0,0.5200544]
[1752112519274,1.42409027,111420.0,111410.0,0.5200544]
[1752112519875,1.42409027,111420.0,111410.0,0.5352344]
[1752112520177,0.80773027,111420.0,111410.0,0.5200544]
[1752112520476,1.42401027,111420.0,111410.0,0.79895222]
[1752112521179,0.80773027,111420.0,111410.0,0.79895222]
[1752112521480,1.42397027,111420.0,111410.0,0.79895222]
[1752112522179,1.31649589,111420.0,111410.0,0.79895222]
[1752112522581,1.31649589,111420.0,111410.0,0.85895222]
[1752112522981,1.42407128,111420.0,111410.0,0.85895222]
[1752112523279,1.31641589,111420.0,111410.0,0.85895222]
[1752112523472,0.66715589,111420.0,111410.0,0.85895222]
[1752112523673,1.28319589,111420.0,111410.0,0.6264344]
[1752112523870,1.28319589,111420.0,111410.0,0.85895222]
[1752112524581,1.28319589,111420.0,111410.0,0.5952344]
[1752112528084,0.66715589,111420.0,111410.0,0.5952344]
[1752112528279,1.28395589,111420.0,111410.0,0.5952344]
[1752112528884,1.28395589,111420.0,111410.0,0.5652344]
[1752112529883,1.28395589,111420.0,111410.0,0.85895222]
[1752112530481,1.41866095,111420.0,111410.0,0.85895222]
[1752112530676,1.45066095,111420.0,111410.0,0.85895222]
[1752112531487,1.450747,111420.0,111410.0,0.85895222]
[1752112533490,1.450747,111420.0,111410.0,0.81895222]
[1752112533990,1.450747,111420.0,111410.0,0.5552344]
[1752112534589,1.450747,111420.0,111410.0,0.6052344]
[1752112535089,1.450747,111420.0,111410.0,0.52442402]
[1752112535685,1.42377982,111420.0,111410.0,0.52442402]
[1752112536083,1.31604194,111420.0,111410.0,0.52442402]
[1752112538593,1.31604194,111420.0,111410.0,0.45442402]
[1752112539592,1.31604194,111420.0,111410.0,0.52442402]
[1752112540783,1.57932758,111420.0,111410.0,0.78770966]
[1752112541590,1.57932758,111420.0,111410.0,0.52442402]
[1752112541797,1.31604194,111420.0,111410.0,0.77252966]
[1752112541991,1.57932758,111420.0,111410.0,0.77252966]
[1752112542200,1.68706546,111420.0,111410.0,0.77252966]
[1752112543195,1.68706546,111420.0,111410.0,0.73252966]
[1752112543998,1.68706546,111420.0,111410.0,0.74252966]
[1752112544899,1.68693103,111420.0,111410.0,0.74252966]
[1752112545701,1.68693147,111420.0,111410.0,0.74252966]
[1752112545993,1.57919359,111420.0,111410.0,0.74252966]
[1752112546195,1.53920247,111420.0,111410.0,0.74252966]
[1752112546499,1.57919386,111420.0,111410.0,0.74252966]
[1752112546701,1.57919386,111420.0,111410.0,0.75858966]
[1752112547597,1.57919386,111420.0,111410.0,0.77858966]
[1752112549104,1.57919386,111420.0,111410.0,0.75858966]
[1752112552307,1.57919386,111420.0,111410.0,0.49530402]
[1752112552498,1.56223533,111420.0,111410.0,0.77858966]
[1752112553094,1.57910885,111420.0,111410.0,0.77858966]
[1752112553298,1.57910995,111420.0,111410.0,0.77858966]
[1752112554108,1.57910995,111420.0,111410.0,0.78858966]
[1752112554508,1.57910995,111420.0,111410.0,0.77252966]
[1752112555411,1.57910995,111420.0,111410.0,0.78858966]
[1752112556010,1.57895809,111420.0,111410.0,0.78858966]
[1752112556308,1.6867021,111420.0,111410.0,0.78858966]
[1752112557414,1.6867021,111420.0,111410.0,0.40858966]
[1752112557610,1.6867021,111420.0,111410.0,0.74252966]
[1752112557811,1.57895809,111420.0,111410.0,0.52267021]
[1752112558007,1.71363847,111420.0,111410.0,0.70212461]
[1752112558310,1.71363847,111420.0,111410.0,0.48212461]
[1752112559006,1.71363847,111420.0,111410.0,0.47212461]
[1752112559007,1.57895809,111420.0,111410.0,0.47212461]
[1752112559420,1.76754517,111420.0,111410.0,0.47212461]
[1752112560024,1.76754517,111420.0,111410.0,0.31050403]
[1752112561814,1.57895809,111420.0,111410.0,0.31050403]
[1752112562421,1.57895809,111420.0,111410.0,0.19050403]
[1752112562622,1.57895809,111420.0,111410.0,0.30050403]
[1752112563918,1.57895809,111420.0,111410.0,0.56050403]
[1752112564122,1.57895809,111420.0,111410.0,0.57696403]
[1752112564323,1.57895809,111420.0,111410.0,0.56050403]
[1752112565124,1.57895809,111420.0,111410.0,0.57696403]
[1752112565324,1.57895809,111420.0,111410.0,0.56050403]
[1752112566320,1.68670117,111420.0,111410.0,0.56050403]
[1752112567525,1.68670117,111420.0,111410.0,0.50050403]
[1752112568727,1.68670117,111420.0,111410.0,0.22050403]
[1752112570325,1.68670117,111420.0,111410.0,0.19050403]
[1752112571530,1.57895809,111420.0,111410.0,0.19050403]
[1752112572125,1.57895809,111420.0,111410.0,0.1794544]
[1752112572326,0.1794543,111410.0,111400.0,0.91050884]
[1752112572628,0.63566869,111410.0,111400.0,0.81738526]
[1752112572829,0.66686869,111410.0,111400.0,1.15355604]
[1752112573025,0.66686869,111410.0,111400.0,1.16738555]
[1752112573217,0.66686869,111410.0,111400.0,1.14738555]
[1752112573724,0.66686869,111410.0,111400.0,1.14938555]
[1752112573924,0.66686869,111410.0,111400.0,0.81938555]
[1752112574126,0.66686869,111410.0,111400.0,1.19938555]
[1752112574431,0.66686869,111410.0,111400.0,1.20038555]
[1752112574831,0.66686869,111410.0,111400.0,1.17038555]
[1752112575130,0.66686869,111410.0,111400.0,0.85038555]
[1752112578026,0.32277679,111410.0,111400.0,1.11367119]
[1752112578222,0.58606243,111410.0,111400.0,1.11367119]
[1752112578428,0.32277679,111410.0,111400.0,1.11367119]
[1752112578626,0.43051987,111410.0,111400.0,1.11367119]
[1752112578828,0.69380551,111410.0,111400.0,1.11367119]
[1752112579028,0.6924319,111410.0,111400.0,1.11367119]
[1752112581136,0.42914626,111410.0,111400.0,1.11367119]
[1752112582940,0.42914626,111410.0,111400.0,1.12367119]
[1752112584827,0.6924319,111410.0,111400.0,1.12367119]
[1752112585432,0.42914626,111410.0,111400.0,1.12367119]
[1752112587643,0.42914626,111410.0,111400.0,1.09367119]
[1752112588245,0.32140318,111410.0,111400.0,1.09367119]
[1752112588444,0.93656318,111410.0,111400.0,1.12537119]
[1752112588848,1.0173557,111410.0,111400.0,1.12537119]
[1752112589947,1.0173557,111410.0,111400.0,0.59879991]
[1752112590150,0.93656318,111410.0,111400.0,0.61525991]
[1752112590350,0.93656318,111410.0,111400.0,1.14183229]
[1752112593243,0.94056021,111410.0,111400.0,1.14183229]
[1752112593752,0.8979443,111410.0,111400.0,1.14183229]
[1752112593954,0.94056041,111410.0,111400.0,1.14183229]
[1752112594953,1.20384605,111410.0,111400.0,1.13183229]
[1752112596149,1.31157152,111410.0,111400.0,1.13183544]
[1752112596351,1.31157152,111410.0,111400.0,1.10013544]
[1752112598654,1.31157152,111410.0,111400.0,0.57356416]
[1752112598955,1.31157152,111410.0,111400.0,1.10013544]
[1752112599448,1.31157152,111410.0,111400.0,1.08630168]
[1752112599955,1.20384605,111410.0,111400.0,0.82301604]
[1752112600143,1.31157662,111410.0,111400.0,0.82301604]
[1752112602358,1.31157662,111410.0,111400.0,0.5597304]
[1752112602548,1.31157662,111410.0,111400.0,0.82301604]
[1752112602749,1.20384605,111410.0,111400.0,0.82301604]
[1752112603652,1.20384605,111410.0,111400.0,0.5597304]
[1752112603853,1.20384605,111410.0,111400.0,0.5432704]
[1752112604157,1.31157662,111410.0,111400.0,0.82166604]
[1752112604356,1.31157662,111410.0,111400.0,0.80655604]
[1752112604548,1.31157662,111410.0,111400.0,0.82166604]
[1752112604750,1.31157662,111410.0,111400.0,0.80655604]
[1752112604958,1.31157662,111410.0,111400.0,0.82166604]
[1752112606159,1.20384605,111410.0,111400.0,0.82166604]
[1752112606755,0.32540041,111410.0,111400.0,1.08495168]
[1752112606958,0.94036041,111410.0,111400.0,1.08495168]
[1752112607159,0.94036041,111410.0,111400.0,0.82166604]
[1752112608056,1.04809098,111410.0,111400.0,0.82166604]
[1752112608562,1.31137662,111410.0,111400.0,0.82166604]
[1752112611066,1.31113662,111410.0,111400.0,0.82166604]
[1752112614462,1.26852051,111410.0,111400.0,0.82166604]
[1752112614666,1.20396997,111410.0,111400.0,0.82166604]
[1752112614863,1.31169263,111410.0,111400.0,0.82166604]
[1752112615468,1.20396997,111410.0,111400.0,0.82166604]
[1752112615767,1.31169214,111410.0,111400.0,0.82166604]
[1752112620566,1.31169214,111410.0,111400.0,0.64219564]
[1752112620765,1.31225466,111410.0,111400.0,0.64219564]
[1752112621670,1.31225466,111410.0,111400.0,0.82166604]
[1752112622782,1.04896902,111410.0,111400.0,0.82166604]
[1752112622978,1.31225466,111410.0,111400.0,0.82166604]
[1752112624178,1.038827,111410.0,111400.0,0.82166604]
[1752112624476,1.30211264,111410.0,111400.0,0.82166604]
[1752112627280,1.30211264,111410.0,111400.0,1.08495168]
[1752112627480,1.30238563,111410.0,111400.0,1.08495168]
[1752112628172,1.30238563,111410.0,111400.0,0.82166604]
[1752112629381,0.42449999,111410.0,111400.0,1.45495168]
[1752112629576,1.04150999,111410.0,111400.0,1.43984168]
[1752112629782,1.04150999,111410.0,111400.0,1.47014168]
[1752112630272,1.04150999,111410.0,111400.0,0.5735704]
[1752112630473,1.30479563,111410.0,111400.0,1.11526168]
[1752112630675,1.04150999,111410.0,111400.0,1.11526168]
[1752112630876,0.96071829,111410.0,111400.0,0.5886904]
[1752112631073,0.96071829,111410.0,111400.0,1.11526168]
[1752112633386,0.96071829,111410.0,111400.0,1.10014168]
[1752112635783,1.06844046,111410.0,111400.0,1.10014168]
[1752112636288,1.3317261,111410.0,111400.0,1.10014168]
[1752112637490,1.3317261,111410.0,111400.0,0.5735704]
[1752112637690,1.3317261,111410.0,111400.0,1.10014168]
[1752112638083,1.22400393,111410.0,111400.0,1.10014168]
[1752112638790,1.35866077,111410.0,111400.0,1.10014168]
[1752112639590,1.22400393,111410.0,111400.0,1.10014168]
[1752112641292,0.96071829,111410.0,111400.0,1.10014168]
[1752112642094,1.06846376,111410.0,111400.0,1.10014168]
[1752112642294,1.06846376,111410.0,111400.0,0.5735704]
[1752112642489,1.06846376,111410.0,111400.0,1.11526168]
[1752112643797,1.04362376,111410.0,111400.0,1.11526168]
[1752112643991,0.36462376,111410.0,111400.0,1.52546168]
[1752112644296,0.97978376,111410.0,111400.0,1.52546168]
[1752112644895,0.97978376,111410.0,111400.0,1.51546168]
[1752112646188,0.87203829,111410.0,111400.0,1.51546168]
[1752112646390,1.00669513,111410.0,111400.0,1.51546168]
[1752112646993,1.00649513,111410.0,111400.0,1.51546168]
[1752112648396,0.87183829,111410.0,111400.0,1.51546168]
[1752112648602,0.87183829,111410.0,111400.0,1.50546168]
[1752112649796,0.89683829,111410.0,111400.0,1.50546168]
[1752112651796,0.89683829,111410.0,111400.0,1.14546168]
[1752112652096,1.35768077,111410.0,111400.0,0.01812]
[1752112652394,0.1794704,111400.0,111390.0,0.00013507]
[1752112652593,1.32418507,111400.0,111390.0,0.00013507]
[1752112652793,0.1795187,111370.0,111360.0,0.3162748]
[1752112652997,1.19818768,111370.0,111360.0,0.6901497]
[1752112653189,1.26348768,111370.0,111360.0,0.80461644]
[1752112653392,1.28848768,111370.0,111360.0,0.82125644]
[1752112653591,1.02520204,111370.0,111360.0,1.08454208]
[1752112653800,0.91887204,111370.0,111360.0,1.47564208]
[1752112654001,0.91887204,111370.0,111360.0,1.50894208]
[1752112654304,0.85409125,111370.0,111360.0,1.50894208]
[1752112654497,0.83806125,111370.0,111360.0,1.51194208]
[1752112654697,0.85409125,111370.0,111360.0,1.50194208]
[1752112654897,0.8547119,111370.0,111360.0,1.50194208]
[1752112655701,0.8547119,111370.0,111360.0,1.5748532]
[1752112655898,0.6591232,111370.0,111360.0,1.83405884]
[1752112656094,0.2238819,111370.0,111360.0,1.83405884]
[1752112656295,0.0443632,111370.0,111360.0,2.62837084]
[1752112656500,0.04136313,111370.0,111360.0,2.87837084]
[1752112657605,0.04136313,111370.0,111360.0,2.69877884]
[1752112658007,0.04136313,111370.0,111360.0,2.70077884]
[1752112658305,0.04136313,111370.0,111360.0,2.68077884]
[1752112659705,0.04136313,111370.0,111360.0,2.69459308]
[1752112662305,0.04136313,111370.0,111360.0,2.44459117]
[1752112663602,0.04136313,111370.0,111360.0,2.62418317]
[1752112663909,0.04136313,111370.0,111360.0,2.29418317]
[1752112664106,0.22088183,111370.0,111360.0,2.65418317]
[1752112666205,0.04136313,111370.0,111360.0,2.29338317]
[1752112666407,0.04136313,111370.0,111360.0,3.01498317]
[1752112666602,0.3141449,111380.0,111370.0,0.1795187]
[1752112666906,0.3141449,111380.0,111370.0,1.13084231]
[1752112667312,0.3301749,111380.0,111370.0,1.13084231]
[1752112667812,0.3301749,111380.0,111370.0,1.15084231]
[1752112668109,0.61846054,111380.0,111370.0,0.45761667]
[1752112668310,0.68056054,111380.0,111370.0,0.47425667]
[1752112668512,0.72543893,111380.0,111370.0,0.47425667]
[1752112669113,0.46215329,111380.0,111370.0,0.47425667]
[1752112669314,0.72543893,111380.0,111370.0,0.47425667]
[1752112670514,0.46215329,111380.0,111370.0,0.47425667]
[1752112671716,1.07691329,111380.0,111370.0,0.47425667]
[1752112673813,1.06088329,111380.0,111370.0,0.84425667]
[1752112674117,1.06088329,111380.0,111370.0,0.79761667]
[1752112674317,1.06088329,111380.0,111370.0,0.81425667]
[1752112674518,1.06088329,111380.0,111370.0,0.21097103]
[1752112674920,1.06088329,111380.0,111370.0,0.83425667]
[1752112676121,1.06088329,111380.0,111370.0,0.81425667]
[1752112676821,1.06088329,111380.0,111370.0,0.47425667]
[1752112677119,1.06088329,111380.0,111370.0,0.82425667]
[1752112677326,1.03588329,111380.0,111370.0,0.80761667]
[1752112677526,1.05843329,111380.0,111370.0,0.80761667]
[1752112677927,1.05843329,111380.0,111370.0,0.83425667]
[1752112679023,1.05843329,111380.0,111370.0,0.85425667]
[1752112680128,1.05843329,111380.0,111370.0,0.84044434]
[1752112680327,1.23196503,111380.0,111370.0,0.84044434]
[1752112680528,1.23196503,111380.0,111370.0,0.85426152]
[1752112681031,0.96867939,111380.0,111370.0,0.85426152]
[1752112681331,0.98518939,111380.0,111370.0,0.83426152]
[1752112681827,0.98518939,111380.0,111370.0,0.57097588]
[1752112682030,0.98518939,111380.0,111370.0,0.82426152]
[1752112682533,0.98518939,111380.0,111370.0,0.47426152]
[1752112685034,1.24847503,111380.0,111370.0,0.21097588]
[1752112685237,1.51176067,111380.0,111370.0,0.01481718]
[1752112685438,1.59257146,111380.0,111370.0,0.27810282]
[1752112685639,1.59257146,111380.0,111370.0,0.01481718]
[1752112686242,1.60155658,111380.0,111370.0,0.01481718]
[1752112688742,1.0749853,111380.0,111370.0,0.01481718]
[1752112688942,1.58504658,111380.0,111370.0,0.01481718]
[1752112689239,1.94584658,111380.0,111370.0,0.01481718]
[1752112689440,1.86503579,111380.0,111370.0,0.01481718]
[1752112689829,1.86503579,111380.0,111370.0,0.001]
[1752112691639,1.50423579,111380.0,111370.0,0.001]
[1752112691845,1.86503579,111380.0,111370.0,0.001]
[1752112694745,1.50423579,111380.0,111370.0,0.001]
[1752112695047,1.61198351,111380.0,111370.0,0.001]
[1752112695344,0.1795187,111370.0,111360.0,0.1813307]
[1752112695539,0.64870909,111370.0,111360.0,0.44461634]
[1752112695736,0.67125909,111370.0,111360.0,0.44461634]
[1752112696341,0.59054273,111370.0,111360.0,0.44461634]
[1752112696543,0.67124738,111370.0,111360.0,0.44661634]
[1752112696745,0.59054273,111370.0,111360.0,0.44861634]
[1752112697747,0.59054273,111370.0,111360.0,0.1853307]
[1752112697947,0.59054273,111370.0,111360.0,0.44861634]
[1752112698548,0.69829045,111370.0,111360.0,0.44861634]
[1752112700745,0.59054273,111370.0,111360.0,0.44861634]
[1752112701047,0.59054273,111370.0,111360.0,0.46242941]
[1752112701542,1.20530273,111370.0,111360.0,0.74195505]
[1752112701750,1.20530273,111370.0,111360.0,0.72571505]
[1752112701941,1.20530273,111370.0,111360.0,0.47866941]
[1752112702749,1.20530273,111370.0,111360.0,0.39664897]
[1752112703049,1.02266181,111370.0,111360.0,0.47866941]
[1752112703250,1.28594745,111370.0,111360.0,0.47866941]
[1752112704647,1.28594745,111370.0,111360.0,0.03584897]
[1752112704848,1.28594745,111370.0,111360.0,0.29913461]
[1752112705048,1.20530273,111370.0,111360.0,0.29913461]
[1752112705443,1.31305045,111370.0,111360.0,0.29913461]
[1752112705644,1.31305045,111370.0,111360.0,0.28532154]
[1752112706144,1.31305045,111370.0,111360.0,0.0220359]
[1752112706350,1.20530273,111370.0,111360.0,0.0057959]
[1752112706750,1.31305045,111370.0,111360.0,0.0057959]
[1752112707553,1.67385045,111370.0,111360.0,0.0057959]
[1752112707853,1.29715045,111370.0,111360.0,0.0057959]
[1752112708654,1.65795045,111370.0,111360.0,0.0057959]
[1752112709447,1.92123609,111370.0,111360.0,0.0057959]
[1752112710045,1.81348837,111370.0,111360.0,0.0057959]
[1752112710446,1.92102661,111370.0,111360.0,0.0057959]
[1752112710850,1.81348837,111370.0,111360.0,0.0057959]
[1752112711049,1.92102838,111370.0,111360.0,0.0057959]
[1752112712459,1.81348837,111370.0,111360.0,0.0057959]
[1752112713061,0.83792837,111370.0,111360.0,0.0057959]
[1752112713252,1.41037272,111370.0,111360.0,0.0057959]
[1752112713448,1.56611273,111370.0,111360.0,0.0057959]
[1752112714255,1.67366237,111370.0,111360.0,0.0057959]
[1752112714958,1.67391425,111370.0,111360.0,0.0057959]
[1752112716661,1.31311425,111370.0,111360.0,0.0057959]
[1752112723068,1.04957673,111370.0,111360.0,0.0057959]
[1752112723267,1.31311425,111370.0,111360.0,0.0057959]
[1752112724567,1.34023545,111370.0,111360.0,0.0057959]
[1752112725872,1.44789039,111370.0,111360.0,0.0057959]
[1752112726082,1.31321955,111370.0,111360.0,0.0057959]
[1752112726285,1.31322051,111370.0,111360.0,0.0057959]
[1752112730789,1.20556461,111370.0,111360.0,0.0057959]
[1752112731086,1.34023545,111370.0,111360.0,0.0057959]
[1752112732687,0.1795348,111360.0,111350.0,0.27112126]
[1752112732989,0.68468156,111360.0,111350.0,0.22623376]
[1752112733785,0.71538156,111360.0,111350.0,0.23023376]
[1752112734687,0.71538156,111360.0,111350.0,0.23223376]
[1752112736286,0.60769756,111360.0,111350.0,0.23223376]
[1752112736989,0.87129096,111360.0,111350.0,0.49579922]
[1752112737288,0.87129096,111360.0,111350.0,0.52699922]
[1752112737490,0.87129096,111360.0,111350.0,0.26343376]
[1752112737679,0.87129096,111360.0,111350.0,0.52699922]
[1752112738190,0.97904186,111360.0,111350.0,0.52699922]
[1752112739385,0.97904186,111360.0,111350.0,0.00779606]
[1752112739889,0.87129096,111360.0,111350.0,0.00779606]
[1752112741290,0.97907858,111360.0,111350.0,0.02161821]
[1752112742292,1.0059618,111360.0,111350.0,0.02161821]
[1752112742493,1.26952726,111360.0,111350.0,0.02161821]
[1752112743094,0.1795671,111340.0,111330.0,0.30951053]
[1752112743298,1.49006619,111340.0,111330.0,0.32540053]
[1752112743596,1.54828619,111340.0,111330.0,0.32540053]
[1752112743794,1.55743383,111340.0,111330.0,0.32540053]
[1752112744091,1.28472073,111340.0,111330.0,0.32540053]
[1752112744482,1.17698095,111340.0,111330.0,0.32540053]
[1752112744893,1.17698095,111340.0,111330.0,0.32940053]
[1752112745192,1.17698095,111340.0,111330.0,0.59296599]
[1752112745891,1.28472073,111340.0,111330.0,0.59296599]
[1752112746389,1.26686013,111340.0,111330.0,0.32940053]
[1752112746583,1.25773949,111340.0,111330.0,0.32940053]
[1752112746783,1.25773949,111340.0,111330.0,0.59296599]
[1752112748294,1.25773949,111340.0,111330.0,0.59796599]
[1752112748688,0.83908549,111340.0,111330.0,0.59796599]
[1752112748893,0.88011549,111340.0,111330.0,0.59796599]
[1752112749094,0.83908549,111340.0,111330.0,0.59796599]
[1752112749499,0.83908549,111340.0,111330.0,0.95796599]
[1752112749705,0.88011549,111340.0,111330.0,0.95796599]
[1752112749998,0.86400549,111340.0,111330.0,0.95796599]
[1752112750187,0.88011549,111340.0,111330.0,0.33440053]
[1752112750392,0.88011549,111340.0,111330.0,0.91796599]
[1752112752601,0.88011549,111340.0,111330.0,0.93796599]
[1752112753902,0.88011549,111340.0,111330.0,0.59796599]
[1752112754202,0.96087403,111340.0,111330.0,0.90796599]
[1752112756201,0.96087403,111340.0,111330.0,0.95796599]
[1752112757001,0.96087403,111340.0,111330.0,0.59796599]
[1752112757201,0.96083403,111340.0,111330.0,0.91796599]
[1752112757503,0.96083403,111340.0,111330.0,0.97796599]
[1752112759100,0.96083403,111340.0,111330.0,0.95796599]
[1752112759402,1.22439949,111340.0,111330.0,0.33440053]
[1752112759599,1.28919949,111340.0,111330.0,0.29160319]
[1752112759799,1.28919949,111340.0,111330.0,0.02803773]
[1752112760102,1.28919949,111340.0,111330.0,0.1885832]
[1752112760103,1.55276495,111340.0,111330.0,0.1885832]
[1752112760303,1.28919949,111340.0,111330.0,0.45214866]
[1752112760803,1.28919949,111340.0,111330.0,0.44814866]
[1752112761004,1.28919949,111340.0,111330.0,0.007]
[1752112761205,1.55276495,111340.0,111330.0,0.007]
[1752112761410,1.55276495,111340.0,111330.0,0.003]
[1752112762405,1.47200641,111340.0,111330.0,0.003]
[1752112764299,1.20844095,111340.0,111330.0,0.26656546]
[1752112764504,1.20844095,111340.0,111330.0,0.26456546]
[1752112764706,1.20844095,111340.0,111330.0,0.44414866]
[1752112764905,1.28059495,111340.0,111330.0,0.44414866]
[1752112765598,1.28159495,111340.0,111330.0,0.44314866]
[1752112768005,1.50413041,111340.0,111330.0,0.44314866]
[1752112768599,1.50413041,111340.0,111320.0,0.4000598]
[1752112768600,0.1795832,111330.0,111320.0,0.00179654]
[1752112768801,0.89494578,111330.0,111320.0,0.00179654]
[1752112769003,0.1795994,111320.0,111310.0,0.0017967]
[1752112769208,0.1796478,111290.0,111280.0,0.68259285]
[1752112769396,1.68923446,111290.0,111280.0,0.92452845]
[1752112769595,1.72083446,111290.0,111280.0,0.66096299]
[1752112769798,1.72083446,111290.0,111280.0,0.92452845]
[1752112770000,1.77873446,111290.0,111280.0,0.44502655]
[1752112770200,1.82354049,111290.0,111280.0,0.44502655]
[1752112770597,1.82354049,111290.0,111280.0,0.44702655]
[1752112770809,1.55997503,111290.0,111280.0,0.18346109]
[1752112771309,1.55997503,111290.0,111280.0,0.18846109]
[1752112771608,1.55997503,111290.0,111280.0,0.45235742]
[1752112771811,1.55997503,111290.0,111280.0,0.44735742]
[1752112772002,1.6407283,111290.0,111280.0,0.46377742]
[1752112772308,1.6407283,111290.0,111280.0,0.47763902]
[1752112772504,1.6407283,111290.0,111280.0,0.44735742]
[1752112772807,1.6407283,111290.0,111280.0,0.46377742]
[1752112773211,1.55997503,111290.0,111280.0,0.46377742]
[1752112774306,1.55997503,111290.0,111280.0,0.46177742]
[1752112777312,1.55997503,111290.0,111280.0,0.19788109]
[1752112777515,1.55997503,111290.0,111280.0,0.46177742]
[1752112777710,1.55997503,111290.0,111280.0,0.19788109]
[1752112778009,1.55997503,111290.0,111280.0,0.46177742]
[1752112778409,1.55997503,111290.0,111280.0,0.19788109]
[1752112778612,1.55997503,111290.0,111280.0,0.46177742]
[1752112780117,1.6407283,111290.0,111280.0,0.46177742]
[1752112780509,1.90462463,111290.0,111280.0,0.00179719]
[1752112780708,0.1796639,111280.0,111270.0,0.00179735]
[1752112781009,0.1796962,111260.0,111250.0,0.58312923]
[1752112781210,1.49352223,111260.0,111250.0,0.27096479]
[1752112781416,1.55692223,111260.0,111250.0,0.50486112]
[1752112781714,1.55692223,111260.0,111250.0,0.81486112]
[1752112782219,1.55692223,111260.0,111250.0,0.84726112]
[1752112782511,1.55692223,111260.0,111250.0,0.91726112]
[1752112782814,1.63056173,111260.0,111250.0,0.91726112]
[1752112784618,1.63102695,111260.0,111250.0,0.91726112]
[1752112784920,1.63102695,111260.0,111250.0,0.53726112]
[1752112785109,1.63102695,111260.0,111250.0,0.87726112]
[1752112786317,1.71178022,111260.0,111250.0,0.87726112]
[1752112786727,1.71178022,111260.0,111250.0,0.27336479]
[1752112787020,1.71178022,111260.0,111250.0,0.84726112]
[1752112787823,0.99404022,111260.0,111250.0,0.84726112]
[1752112788120,0.99404022,111260.0,111250.0,0.27336479]
[1752112788328,1.00916022,111260.0,111250.0,0.53726112]
[1752112788624,1.00916022,111260.0,111250.0,0.87726112]
[1752112789326,1.00916022,111260.0,111250.0,0.88726112]
[1752112790123,1.00916022,111260.0,111250.0,0.85726112]
[1752112791320,0.39448022,111260.0,111250.0,0.85726112]
[1752112791522,1.00916022,111260.0,111250.0,0.85726112]
[1752112792720,0.14114452,111260.0,111250.0,0.85726112]
[1752112792920,0.14114452,111260.0,111250.0,1.16442112]
[1752112792921,0.74070452,111260.0,111250.0,1.16442112]
[1752112793122,0.65995125,111260.0,111250.0,1.16442112]
[1752112793322,0.65999785,111260.0,111250.0,1.16442112]
[1752112793922,0.12607112,111260.0,111250.0,0.84442112]
[1752112794126,0.12607112,111260.0,111250.0,1.15442112]
[1752112794127,0.74075112,111260.0,111250.0,1.15442112]
[1752112794517,0.12607112,111260.0,111250.0,1.15442112]
[1752112794824,0.74075112,111260.0,111250.0,1.15442112]